bitfinex/quotes_ETHUSD_20240729
["timestamp","ask_amount","ask_price","bid_price","bid_amount"]
[1722264952564,1.04179725,3324.8,3324.4,5.522467]
[1722264952798,1.04179725,3324.7,3324.4,5.522467]
[1722264952962,3.00761,3324.9,3324.1,5.3546832]
[1722264953167,1.04183115,3324.6,3324.2,0.55]
[1722264953405,1.04183115,3324.5,3324.2,0.55]
[1722264953617,3.00777,3324.8,3324.2,0.55]
[1722264953618,1.04183115,3324.7,3324.2,0.55]
[1722264953922,4.04976115,3324.6,3324.2,0.55]
[1722264954081,1.04183115,3324.5,3324.2,0.55]
[1722264954606,1.04183115,3324.6,3324.1,5.3546832]
[1722264954814,3.00819,3324.3,3324.1,5.3546832]
[1722264954967,4.05007115,3324.2,3324.1,5.3546832]
[1722264955320,4.05007115,3324.2,3324.1,5.35369484]
[1722264955543,4.75589727,3324.2,3324.1,5.35369484]
[1722264955811,7.05831115,3324.2,3324.1,5.35369484]
[1722264956028,10.06685667,3324.2,3324.1,5.35369484]
[1722264956224,12.05202,3322.9,3322.8,0.1468371]
[1722264956511,14.39718991,3322.9,3322.8,0.1468371]
[1722264956715,15.8369089,3322.9,3322.8,0.1468371]
[1722264956873,18.8463189,3322.9,3322.8,0.1468371]
[1722264957072,21.8557289,3322.9,3322.8,0.1468371]
[1722264957442,19.3551189,3322.9,3322.8,0.1468371]
[1722264957708,22.5231189,3322.9,3322.8,0.1468371]
[1722264957878,25.5325289,3322.9,3322.8,0.1468371]
[1722264958080,16.3457089,3322.9,3322.8,0.1468371]
[1722264958403,21.6808189,3322.9,3322.8,0.1468371]
[1722264958726,23.80668223,3322.9,3322.8,0.1468371]
[1722264958932,27.85889065,3322.9,3322.8,0.1468371]
[1722264959270,26.81609223,3322.9,3322.8,0.1468371]
[1722264959619,27.85889184,3322.9,3322.8,0.1468371]
[1722264959854,18.13948184,3322.9,3322.8,0.1468371]
[1722264960021,12.38731961,3322.9,3322.8,0.1468371]
[1722264960227,7.06161961,3322.9,3322.8,0.1468371]
[1722264960510,3.00941,3322.9,3322.8,0.1468371]
[1722264961022,0.008,3323.0,3322.8,0.1468371]
[1722264961868,0.008,3323.0,3322.9,0.06018519]
[1722264962080,0.008,3323.0,3322.9,0.61018519]
[1722264962484,0.008,3323.0,3322.9,0.98683042]
[1722264962687,0.008,3323.0,3322.9,3.99624042]
[1722264962912,0.008,3323.0,3322.9,0.92664523]
[1722264963083,0.008,3323.0,3322.9,0.55]
[1722264963511,0.008,3323.0,3322.8,0.1468371]
[1722264963512,3.00941,3322.9,3322.8,0.1468371]
[1722264964123,6.01882,3322.9,3322.8,0.1468371]
[1722264965315,3.00941,3322.9,3322.8,0.1468371]
[1722264965530,3.01733,3323.0,3322.8,0.1468371]
[1722264965927,0.008,3323.0,3322.8,0.1468371]
[1722264966949,0.008,3323.0,3322.9,3.61958747]
[1722264967098,0.008,3323.0,3322.9,3.99622993]
[1722264967423,0.008,3323.0,3322.9,10.00563993]
[1722264967594,0.008,3323.0,3322.9,13.01504993]
[1722264967791,10.31807,3324.4,3323.5,3.00887]
[1722264968102,3.0083,3324.2,3323.6,0.55]
[1722264968306,3.00786,3324.7,3323.7,3.06884486]
[1722264968506,3.00801,3324.5,3323.8,0.06016482]
[1722264968712,3.00785,3324.7,3323.8,0.06016482]
[1722264968914,3.00797,3324.5,3323.9,0.55]
[1722264969120,3.542,3325.0,3324.1,3.00825]
[1722264969322,3.00741,3325.2,3324.2,3.06833697]
[1722264969654,3.00745,3325.1,3324.2,3.06833697]
[1722264970257,3.542,3325.5,3324.3,3.61828778]
[1722264970258,3.00713,3325.5,3324.3,3.61828778]
[1722264970565,3.894757,3325.8,3324.3,5.83772]
[1722264970566,0.887947,3325.8,3324.3,5.83772]
[1722264970711,3.00767,3324.9,3324.3,0.55]
[1722264970914,3.00767,3324.9,3324.0,3.0]
[1722264970915,2.3692,3325.4,3324.0,3.0]
[1722264971110,3.542,3325.0,3323.7,3.0]
[1722264971315,1.93680158,3325.3,3323.7,3.0]
[1722264971316,3.0078,3324.7,3323.7,6.00863]
[1722264971497,3.0078,3324.7,3323.8,3.00859]
[1722264971699,3.0077,3324.8,3323.9,3.06864466]
[1722264971912,3.00758,3325.0,3323.9,3.06864466]
[1722264972137,2.3692,3325.4,3323.7,3.0]
[1722264972138,3.00804,3324.5,3323.7,3.0]
[1722264972386,3.168,3324.9,3323.1,5.522467]
[1722264972545,3.00852,3323.9,3322.8,8.6787941]
[1722264972756,6.17587,3324.7,3322.8,0.1468371]
[1722264972903,5.9788,3324.8,3323.3,3.00898]
[1722264972904,3.00812,3324.4,3323.3,3.00898]
[1722264973102,2.4018,3324.8,3323.4,0.300898]
[1722264973305,3.00836,3324.1,3323.1,3.00919]
[1722264973504,3.00781,3324.7,3323.5,3.00887]
[1722264973820,3.00763,3324.9,3323.9,3.0085]
[1722264974316,3.00763,3324.9,3324.0,0.06016244]
[1722264974501,3.01,3325.0,3324.0,3.06016244]
[1722264974502,0.01,3325.0,3324.0,3.06016244]
[1722264974701,0.01,3325.0,3324.1,3.86425624]
[1722264974903,3.01752,3325.0,3324.1,3.86425624]
[1722264975109,0.01,3325.0,3324.2,3.0]
[1722264975300,0.01,3325.0,3324.4,3.00805]
[1722264975505,0.01,3325.0,3324.3,0.61015268]
[1722264975506,0.01,3325.0,3324.6,3.00781]
[1722264975707,0.01,3325.0,3324.7,3.37472619]
[1722264975945,0.01,3325.0,3324.9,3.0076]
[1722264976164,0.01,3325.0,3324.9,6.62534235]
[1722264976820,0.01,3325.0,3324.9,9.62534235]
[1722264977015,0.01,3325.0,3324.9,9.5652]
[1722264977272,0.01,3325.0,3324.9,4.53719963]
[1722264977625,0.01,3325.0,3324.9,3.55]
[1722264978320,0.01,3325.0,3324.9,9.62534112]
[1722264978545,0.01,3325.0,3324.9,9.5652]
[1722264979221,10.31632,3326.4,3325.3,3.0072]
[1722264979421,5.31659,3326.7,3324.9,3.55]
[1722264979769,3.00617,3326.5,3325.5,3.00703]
[1722264980062,3.00627,3326.4,3325.6,0.060132]
[1722264980224,0.531659,3326.6,3325.6,0.060132]
[1722264980567,5.31665,3326.7,3325.6,3.067092]
[1722264980735,3.00608,3326.6,3325.7,0.55]
[1722264981074,3.00592,3326.8,3325.8,0.06012787]
[1722264981219,5.49485,3327.2,3326.0,3.0066]
[1722264981418,3.00572,3327.0,3326.1,0.0601228]
[1722264982172,0.24893,3327.1,3326.2,3.55643]
[1722264982477,3.00571,3327.0,3326.2,0.55]
[1722264982763,3.00556,3327.2,3325.6,2.2787]
[1722264982970,3.0054,3327.4,3326.4,3.00618]
[1722264983133,2.3238,3327.8,3326.4,3.00618]
[1722264983134,0.30054,3327.3,3326.6,3.00606]
[1722264983468,3.00523,3327.6,3326.7,0.0601094]
[1722264983681,3.00523,3327.6,3326.8,0.55]
[1722264983965,3.00513,3327.7,3326.8,3.55]
[1722264984166,3.0055,3327.3,3326.8,3.55]
[1722264984373,5.9008,3328.4,3326.1,8.528967]
[1722264984536,5.9008,3328.4,3326.2,3.55]
[1722264984537,3.00568,3327.1,3326.2,3.55]
[1722264984718,3.00568,3327.1,3326.3,3.0]
[1722264984922,3.00568,3327.1,3326.4,0.55]
[1722264985119,3.00565,3327.1,3326.2,0.55]
[1722264985323,3.00565,3327.1,3326.1,3.55646]
[1722264985564,3.0059,3326.8,3326.2,3.0]
[1722264985747,3.0059,3326.8,3326.1,0.55]
[1722264985748,3.00599,3326.7,3326.0,3.0]
[1722264985955,3.00626,3326.4,3325.6,2.2787]
[1722264986154,3.00626,3326.4,3325.5,3.007]
[1722264986355,3.00617,3326.5,3325.6,3.00697]
[1722264986865,3.00573,3327.0,3325.6,3.00697]
[1722264987174,3.00597,3326.8,3325.8,3.00673]
[1722264987324,3.00597,3326.8,3325.9,3.55669]
[1722264987525,3.00597,3326.8,3325.9,0.55]
[1722264987828,7.31,3327.5,3326.7,3.00598]
[1722264988187,0.012,3328.0,3326.8,0.55]
[1722264988324,3.00513,3327.7,3326.8,0.55]
[1722264988521,3.00517,3327.6,3326.8,3.55]
[1722264988759,0.300517,3327.5,3326.8,0.55]
[1722264988966,0.300517,3327.5,3326.7,0.55]
[1722264989267,0.012,3328.0,3327.3,3.00541]
[1722264989476,0.012,3328.0,3327.4,0.0601001]
[1722264989965,0.012,3328.0,3327.5,3.00519]
[1722264990128,0.012,3328.0,3327.6,3.55516]
[1722264990332,0.012,3328.0,3327.7,3.0651525]
[1722264990526,0.012,3328.0,3327.8,0.06009251]
[1722264990733,0.012,3328.0,3327.9,3.00489]
[1722264990969,0.012,3328.0,3327.9,0.55]
[1722264991183,0.012,3328.0,3327.9,3.55489]
[1722264991386,0.012,3328.0,3327.9,0.61008676]
[1722264992002,0.012,3328.0,3327.9,3.61497676]
[1722264993311,0.012,3328.0,3327.9,9.61986676]
[1722264993654,0.012,3328.0,3327.9,6.61497676]
[1722264993881,0.012,3328.0,3327.9,3.55]
[1722264994066,0.012,3328.0,3327.9,0.55]
[1722264994483,0.012,3328.0,3327.9,3.55489]
[1722264994699,0.012,3328.0,3327.9,6.55489]
[1722264995202,0.012,3328.0,3327.9,10.515774]
[1722264995702,0.012,3328.0,3327.9,15.824064]
[1722264996314,3.00318,3329.8,3328.9,3.00396]
[1722264996594,3.00324,3329.8,3329.0,0.06006883]
[1722264996901,3.00328,3329.7,3329.0,0.61006883]
[1722264997440,3.00311,3329.9,3329.0,0.61006883]
[1722264997605,3.00313,3329.9,3329.0,0.61006883]
[1722264997910,0.01,3330.0,3329.0,3.61391883]
[1722264998057,0.301292,3329.9,3329.1,3.00375]
[1722264998256,0.301292,3329.9,3329.2,3.61378296]
[1722264998460,0.01,3330.0,3329.0,0.55]
[1722264998654,3.00335,3329.7,3328.9,0.55]
[1722264998879,3.00345,3329.5,3328.9,0.55]
[1722264999101,3.00335,3329.7,3328.8,0.55]
[1722264999404,3.0032,3329.8,3328.9,0.06006584]
[1722264999570,0.301311,3329.8,3329.0,3.0175]
[1722264999772,0.01,3330.0,3329.2,3.0037]
[1722264999989,0.01,3330.0,3329.3,0.61006201]
[1722265000295,0.01,3330.0,3329.3,3.61368201]
[1722265000509,0.01,3330.0,3329.3,1.27143021]
[1722265001007,3.00315,3329.9,3329.3,0.55]
[1722265001165,0.01,3330.0,3329.4,0.06006003]
[1722265001360,0.01,3330.0,3329.5,3.55342]
[1722265001563,0.01,3330.0,3329.6,3.06339536]
[1722265001904,0.01,3330.0,3329.7,0.55]
[1722265002087,0.01,3330.0,3329.8,0.0600547]
[1722265002288,0.01,3330.0,3329.9,0.55]
[1722265004612,0.01,3330.0,3329.1,3.00377]
[1722265004613,0.311284,3330.0,3329.1,3.00377]
[1722265004791,0.311284,3330.0,3329.2,3.55369]
[1722265004991,0.311284,3330.0,3329.1,0.55]
[1722265005176,3.00323,3329.8,3329.1,0.55]
[1722265005495,0.6317684,3329.8,3329.0,2.4675]
[1722265006003,0.01,3330.0,3329.0,5.47136]
[1722265006306,0.01,3330.0,3329.4,3.00346]
[1722265006505,0.01,3330.0,3329.6,3.0033]
[1722265006806,0.01,3330.0,3329.8,3.00316]
[1722265007010,0.01,3330.0,3329.9,9.67254727]
[1722265007157,0.01,3330.0,3329.9,9.62134727]
[1722265007498,0.01,3330.0,3329.9,12.62134727]
[1722265007711,3.00165,3331.5,3330.5,3.00251]
[1722265007863,3.00192,3331.2,3330.3,3.0027]
[1722265008060,3.00202,3331.1,3330.4,0.55]
[1722265008264,3.00211,3331.0,3330.4,0.55]
[1722265008487,3.543,3330.8,3329.1,0.33082295]
[1722265008807,3.0025,3330.6,3329.4,3.00349]
[1722265009103,3.0024,3330.7,3329.5,0.06005697]
[1722265009259,3.00246,3330.6,3329.6,3.0033]
[1722265009462,3.00246,3330.6,3329.7,3.00326]
[1722265009463,3.00248,3330.6,3329.7,3.00326]
[1722265009663,3.00248,3330.6,3329.7,0.600659]
[1722265009984,3.00248,3330.6,3329.7,3.603909]
[1722265010188,0.3843211,3330.7,3329.8,3.55317]
[1722265010387,3.00252,3330.6,3329.8,0.55]
[1722265010700,3.00289,3330.2,3329.2,5.522467]
[1722265010887,3.00336,3329.6,3328.7,4.94417]
[1722265011062,0.300336,3329.6,3328.7,1.94]
[1722265011260,3.00347,3329.5,3328.4,3.00439]
[1722265011461,3.00347,3329.5,3328.3,2.3265]
[1722265011462,3.0032,3329.8,3328.3,2.3265]
[1722265011673,0.008,3330.0,3328.5,3.00435]
[1722265011875,0.008,3330.0,3329.1,3.00379]
[1722265012083,3.00339,3329.6,3328.6,0.300435]
[1722265012283,3.00347,3329.5,3328.6,3.304645]
[1722265012887,3.00343,3329.6,3328.4,3.00444]
[1722265013093,3.0032,3329.8,3328.3,2.3265]
[1722265013309,3.00317,3329.9,3328.9,3.00392]
[1722265013612,3.00317,3329.9,3328.3,5.33098]
[1722265013613,3.00321,3329.8,3328.7,3.00412]
[1722265013913,3.00343,3329.6,3328.3,2.3265]
[1722265014240,3.00328,3329.7,3328.8,3.00403]
[1722265014383,3.0034,3329.6,3328.9,3.55]
[1722265014586,3.00325,3329.8,3328.9,6.55398]
[1722265014908,3.00335,3329.7,3328.9,6.55398]
[1722265015209,3.00354,3329.4,3328.9,3.55]
[1722265015820,3.00346,3329.5,3328.9,0.55]
[1722265016034,3.00346,3329.5,3328.7,0.55]
[1722265016536,3.604197,3329.5,3328.7,0.55]
[1722265016813,3.604197,3329.5,3328.7,3.00415]
[1722265016814,0.600677,3329.5,3328.7,3.00415]
[1722265017031,0.008,3330.0,3328.8,3.61412909]
[1722265017032,3.01107,3330.0,3328.8,3.61412909]
[1722265017308,3.00314,3329.9,3329.0,3.00384]
[1722265017539,3.00314,3329.9,3329.1,0.61006433]
[1722265017887,3.00337,3329.6,3328.7,3.0]
[1722265018089,3.00347,3329.5,3328.8,0.55]
[1722265018955,0.008,3330.0,3328.8,0.55]
[1722265019117,3.00344,3329.6,3328.8,3.55]
[1722265019289,3.00345,3329.5,3328.8,3.55]
[1722265019489,3.00314,3329.9,3328.8,0.55]
[1722265019690,3.0037,3329.3,3328.7,0.55]
[1722265019951,3.00367,3329.3,3328.6,0.55]
[1722265020156,8.8004,3329.7,3328.5,0.55]
[1722265020307,4.04385641,3329.6,3328.6,0.06007384]
[1722265020496,0.008,3330.0,3328.8,3.00407]
[1722265020829,3.00391,3329.0,3328.5,0.55]
[1722265021138,1.04033387,3329.9,3328.2,5.522467]
[1722265021139,3.00418,3328.7,3328.2,5.522467]
[1722265021304,2.3927,3329.3,3327.9,7.173994]
[1722265021305,5.39637,3329.3,3327.9,7.173994]
[1722265021633,3.00434,3328.6,3327.6,3.00511]
[1722265021818,3.00435,3328.5,3327.6,3.00511]
[1722265022032,3.00486,3328.0,3326.9,5.522467]
[1722265022191,3.00507,3327.8,3326.9,3.8585707]
[1722265022395,3.00507,3327.8,3327.0,3.00569]
[1722265022634,3.00463,3328.2,3327.0,3.00568]
[1722265022836,3.00463,3328.2,3327.1,0.38585107]
[1722265022837,3.0049,3327.9,3327.1,0.38585107]
[1722265023376,3.00508,3327.7,3327.1,0.38585107]
[1722265023577,3.00542,3327.4,3326.4,3.00623]
[1722265023778,6.54766,3328.2,3326.2,8.528867]
[1722265023978,6.54766,3328.2,3325.9,6.218]
[1722265023979,3.00598,3326.7,3325.9,6.218]
[1722265024137,3.00614,3326.6,3325.9,6.218]
[1722265024341,3.543,3327.1,3325.9,0.6218]
[1722265024342,3.00618,3326.5,3325.9,0.6218]
[1722265024535,3.00599,3326.7,3325.5,2.2964]
[1722265024737,3.00587,3326.9,3325.5,2.2964]
[1722265025230,3.00587,3326.9,3325.7,3.0068]
[1722265025666,3.543,3327.1,3325.5,5.30344]
[1722265025865,3.00622,3326.5,3325.6,0.530344]
[1722265026188,3.00608,3326.6,3325.6,3.537304]
[1722265026332,3.00616,3326.5,3325.6,3.537304]
[1722265026536,3.00616,3326.5,3325.7,3.5833704]
[1722265027153,3.00628,3326.4,3325.7,0.5833704]
[1722265027662,3.00628,3326.4,3325.8,0.55]
[1722265028173,3.00613,3326.6,3325.8,0.55]
[1722265028679,0.3663,3327.0,3326.8,3.00583]
[1722265028680,0.012,3327.0,3326.8,3.00583]
[1722265028912,0.012,3327.0,3326.9,3.300583]
[1722265029235,0.012,3327.0,3326.9,3.91068546]
[1722265029365,0.012,3327.0,3326.9,9.92228546]
[1722265029574,0.012,3327.0,3326.9,12.21868546]
[1722265029814,3.00439,3328.5,3327.4,3.00529]
[1722265030004,3.00418,3328.7,3327.6,3.00515]
[1722265030170,6.556537,3329.2,3328.2,3.00462]
[1722265030171,3.00383,3329.1,3328.2,3.00462]
[1722265030394,3.013537,3329.2,3328.3,0.06008113]
[1722265030395,5.47768,3329.2,3328.3,0.06008113]
[1722265030596,3.00374,3329.2,3328.3,3.06459113]
[1722265030821,3.543,3329.7,3328.3,0.06008113]
[1722265030822,3.0036,3329.4,3328.3,0.06008113]
[1722265031102,3.0036,3329.4,3328.4,0.55]
[1722265031321,3.00337,3329.6,3328.5,3.06441252]
[1722265031531,3.00327,3329.7,3328.6,0.55]
[1722265031671,2.4349,3329.9,3328.7,0.06007375]
[1722265031872,3.0033,3329.7,3328.7,0.06007375]
[1722265032110,3.0031,3329.9,3328.8,0.61007194]
[1722265032324,3.00293,3330.1,3329.1,3.00381]
[1722265032472,3.003,3330.0,3328.9,3.00398]
[1722265032667,3.00282,3330.2,3329.1,3.00377]
[1722265032874,3.00282,3330.2,3329.2,1.26544083]
[1722265033074,3.00306,3330.0,3329.2,0.655377]
[1722265033313,3.0031,3329.9,3329.2,0.655377]
[1722265033620,3.00292,3330.1,3329.2,0.655377]
[1722265033621,3.0029,3330.2,3329.2,0.655377]
[1722265033818,3.0029,3330.2,3329.0,3.55]
[1722265034033,3.01506,3330.0,3329.0,3.55]
[1722265034309,0.012,3330.0,3329.1,0.06006388]
[1722265034509,0.012,3330.0,3329.3,3.00363]
[1722265034723,0.012,3330.0,3329.4,3.0]
[1722265034922,3.00316,3329.9,3329.2,3.55]
[1722265035139,3.00338,3329.6,3329.0,3.0]
[1722265035407,3.00324,3329.8,3328.6,3.0042]
[1722265035628,3.00351,3329.5,3328.7,3.0]
[1722265035816,0.012,3330.0,3327.5,0.300529]
[1722265035984,3.00351,3329.5,3328.4,3.00444]
[1722265036190,3.33345004,3329.9,3328.0,3.00475]
[1722265036191,3.00336,3329.6,3328.0,3.00475]
[1722265036501,3.00323,3329.8,3328.7,3.00417]
[1722265036682,0.843643,3329.7,3328.8,0.0600706]
[1722265036887,0.843643,3329.7,3328.8,3.0641306]
[1722265037202,5.43323,3329.9,3328.8,3.0641406]
[1722265037408,5.43323,3329.9,3328.9,3.00398]
[1722265037605,3.00329,3329.7,3328.9,0.06007062]
[1722265037810,3.00318,3329.8,3328.9,0.06007062]
[1722265037979,3.00318,3329.8,3328.9,3.06405062]
[1722265038352,6.0078717,3329.9,3328.9,3.06405062]
[1722265038480,0.012,3330.0,3329.0,3.55]
[1722265038674,0.012,3330.0,3329.2,3.00372]
[1722265038927,0.012,3330.0,3329.3,0.06006375]
[1722265039221,0.012,3330.0,3329.3,3.06369375]
[1722265039424,0.012,3330.0,3329.3,0.06006375]
[1722265039619,0.012,3330.0,3329.4,0.85637737]
[1722265039826,0.012,3330.0,3329.5,0.06005494]
[1722265040011,0.012,3330.0,3329.6,3.55335]
[1722265040188,0.012,3330.0,3329.7,0.06005494]
[1722265040520,0.012,3330.0,3329.6,3.55335]
[1722265040842,3.00255,3330.5,3329.6,3.55335]
[1722265040843,3.00264,3330.4,3329.6,0.55]
[1722265040987,3.00255,3330.5,3329.7,0.06005495]
[1722265041536,3.00246,3330.6,3329.7,3.42139645]
[1722265041822,3.00246,3330.6,3329.8,0.06005459]
[1722265042608,0.52753,3331.1,3330.1,0.610047]
[1722265042820,3.5296,3331.1,3330.1,0.610047]
[1722265042985,3.00211,3331.0,3330.1,3.612947]
[1722265043331,3.0022,3330.9,3330.1,0.610047]
[1722265043535,3.00232,3330.8,3329.9,3.0]
[1722265044128,3.00237,3330.7,3329.9,3.0]
[1722265044332,3.00263,3330.5,3329.7,3.0]
[1722265044489,3.00263,3330.5,3329.5,3.00342]
[1722265044490,3.00263,3330.5,3329.8,0.55]
[1722265044693,3.00263,3330.5,3329.7,0.55]
[1722265044694,3.0028,3330.3,3329.7,0.55]
[1722265045120,3.302823,3330.5,3329.7,0.55]
[1722265045278,3.00269,3330.4,3329.5,3.55]
[1722265045732,3.00223,3330.9,3329.6,2.4157557]
[1722265045882,3.00223,3330.9,3329.7,3.55321]
[1722265046087,3.00264,3330.4,3329.8,3.59689657]
[1722265046310,0.301223,3330.9,3329.1,15.40566106]
[1722265046513,2.4856,3331.0,3329.3,3.00362]
[1722265046514,3.00267,3330.4,3329.3,3.00362]
[1722265046789,3.00302,3330.0,3329.4,3.0]
[1722265046987,3.00265,3330.4,3329.1,0.66140406]
[1722265047205,3.00255,3330.5,3329.6,3.00334]
[1722265047415,3.0023,3330.8,3329.7,3.0633038]
[1722265047630,3.00228,3330.8,3329.8,0.06005209]
[1722265047941,3.00229,3330.8,3329.8,0.06005209]
[1722265048098,3.00237,3330.7,3329.9,0.55]
[1722265048289,3.00256,3330.5,3329.9,0.55]
[1722265048485,3.0027,3330.4,3329.9,0.55]
[1722265048804,0.01,3331.0,3329.6,3.55335]
[1722265048805,3.00255,3330.5,3329.6,3.55335]
[1722265048984,3.00255,3330.5,3329.7,3.0]
[1722265049181,3.00255,3330.5,3329.8,0.55]
[1722265049799,3.00255,3330.5,3329.5,3.0]
[1722265049800,3.00279,3330.3,3329.5,3.0]
[1722265050001,3.302825,3330.5,3329.4,9.00695]
[1722265050303,3.00238,3330.7,3329.8,3.00314]
[1722265050483,3.00219,3330.9,3329.9,3.06312281]
[1722265050679,3.00202,3331.1,3329.9,3.06312281]
[1722265050680,3.00239,3330.7,3329.9,0.06005281]
[1722265050938,3.00261,3330.5,3329.8,3.0]
[1722265051087,3.00195,3331.2,3329.9,0.55]
[1722265051088,3.00246,3330.6,3329.9,0.55]
[1722265051288,3.00231,3330.8,3330.0,0.06005178]
[1722265051533,3.00219,3330.9,3330.0,3.06299178]
[1722265051697,3.00219,3330.9,3330.1,0.55]
[1722265052030,3.00219,3330.9,3330.2,0.06004709]
[1722265052329,3.00204,3331.1,3330.2,0.06004709]
[1722265052330,3.00215,3331.0,3330.2,0.06004709]
[1722265052538,3.00204,3331.1,3330.2,0.06004709]
[1722265052838,3.656244,3331.1,3330.2,0.06004709]
[1722265053125,3.00185,3331.3,3330.5,3.00253]
[1722265053332,3.00174,3331.4,3330.6,0.06004037]
[1722265053484,3.00172,3331.5,3330.6,0.06004037]
[1722265053686,3.00172,3331.5,3330.6,3.06243037]
[1722265053882,6.54151,3331.7,3330.6,0.06004037]
[1722265054128,3.00166,3331.5,3330.6,0.06004037]
[1722265054394,0.654151,3331.6,3330.5,3.00254]
[1722265054395,3.655761,3331.6,3330.5,3.00254]
[1722265054579,3.00175,3331.4,3330.6,0.6100379]
[1722265055033,3.00161,3331.6,3330.7,3.00236]
[1722265055215,3.00161,3331.6,3330.8,0.61003501]
[1722265055405,3.00194,3331.2,3330.6,0.55]
[1722265055607,3.00194,3331.2,3330.5,0.55]
[1722265055828,3.00229,3330.8,3330.2,4.0]
[1722265056132,0.654161,3331.6,3330.3,0.61004603]
[1722265056328,3.54,3331.7,3330.6,3.0024]
[1722265056329,3.00165,3331.5,3330.6,3.0024]
[1722265056541,3.00188,3331.3,3330.7,0.55]
[1722265056834,3.00158,3331.6,3330.8,0.06003659]
[1722265056985,3.00161,3331.6,3330.8,0.36628525]
[1722265057185,3.00171,3331.5,3330.5,3.00252]
[1722265057385,3.00147,3331.7,3330.8,3.00226]
[1722265057627,3.00156,3331.6,3330.9,0.06003419]
[1722265057830,3.00124,3332.0,3330.9,0.06003419]
[1722265058038,8.85307,3332.2,3330.9,0.06003419]
[1722265058039,3.00149,3331.7,3330.9,0.06003419]
[1722265058186,1.0397398,3331.6,3330.9,0.06003419]
[1722265058518,3.00157,3331.6,3330.7,3.0623438]
[1722265058839,1.03974066,3331.5,3330.8,0.6100338]
[1722265059193,1.03974261,3331.4,3330.8,3.6123038]
[1722265059512,3.00159,3331.6,3330.9,0.66146138]
[1722265059723,3.00159,3331.6,3331.0,0.55]
[1722265059724,1.03973906,3331.5,3331.0,0.55]
[1722265059894,1.03974337,3331.4,3330.9,0.06003383]
[1722265060092,3.00152,3331.7,3331.0,0.55]
[1722265060292,1.03973642,3331.6,3331.1,0.060032]
[1722265060609,3.00129,3331.9,3331.2,0.55]
[1722265060920,1.03961746,3331.8,3331.3,0.06002878]
[1722265061112,4.04108746,3331.7,3331.2,0.55]
[1722265061321,3.00129,3331.9,3331.3,0.06002914]
[1722265061632,1.0396241,3331.8,3330.9,0.55]
[1722265061942,3.00185,3331.3,3330.4,6.1636446]
[1722265062087,3.00169,3331.5,3330.4,6.1636446]
[1722265062088,3.00169,3331.5,3330.5,0.55]
[1722265062292,1.03976846,3331.4,3330.8,3.00227]
[1722265062594,3.00162,3331.6,3330.6,3.00245]
[1722265062824,1.03973139,3331.5,3330.7,6.907605]
[1722265063007,3.00148,3331.7,3330.7,0.55]
[1722265063207,13.85,3332.3,3330.3,2.4327]
[1722265063208,3.00188,3331.3,3330.3,2.4327]
[1722265063414,1.0397201,3331.2,3330.3,2.4327]
[1722265063635,3.00228,3330.8,3330.4,0.34327]
[1722265063946,3.00211,3331.0,3330.2,1.0]
[1722265064246,3.0,3331.7,3330.2,1.0]
[1722265064247,1.03992548,3330.9,3330.2,4.00275]
[1722265064410,3.002,3331.2,3330.3,0.400275]
[1722265064746,6.00151,3331.7,3330.2,1.0]
[1722265064747,3.00235,3330.8,3330.2,1.0]
[1722265065090,5.9558,3331.8,3330.3,0.61004596]
[1722265065091,3.00197,3331.2,3330.3,0.61004596]
[1722265065292,3.00217,3331.0,3330.3,0.55]
[1722265065493,3.00252,3330.6,3330.2,1.0]
[1722265065892,3.00239,3330.7,3330.2,1.0]
[1722265066357,3.00225,3330.9,3330.2,1.19916072]
[1722265066564,3.00176,3331.4,3330.3,0.06004729]
[1722265066717,3.00128,3332.0,3330.4,3.00263]
[1722265066718,4.04166186,3331.3,3330.4,3.00263]
[1722265066919,1.03982186,3331.2,3330.5,0.61003676]
[1722265067123,0.01,3332.0,3330.5,0.61003676]
[1722265067124,3.00172,3331.5,3330.6,2.63236468]
[1722265067377,1.03975984,3331.4,3330.7,0.55]
[1722265067560,1.03975984,3331.3,3330.7,0.55]
[1722265067740,4.04154984,3331.4,3330.8,0.31823647]
[1722265068060,3.00141,3331.8,3330.9,0.55]
[1722265068278,1.03973387,3331.3,3330.9,0.55]
[1722265068434,0.01,3332.0,3330.8,3.31823647]
[1722265068435,1.03973387,3331.2,3330.8,3.31823647]
[1722265068619,3.00139,3331.8,3330.9,0.88182365]
[1722265068821,1.03975184,3331.7,3330.9,0.88182365]
[1722265069022,1.03975184,3331.6,3330.9,0.88182365]
[1722265069337,1.03975184,3331.5,3330.9,0.88182365]
[1722265069537,1.03975184,3331.4,3331.0,0.68841037]
[1722265069862,1.03970531,3331.3,3331.1,0.55]
[1722265070018,3.00149,3331.7,3331.1,0.55]
[1722265070220,1.03970434,3331.6,3331.1,0.55]
[1722265070416,1.03970434,3331.5,3330.7,3.0]
[1722265070724,1.03971161,3331.4,3330.8,1.150242]
[1722265070917,4.04148161,3331.4,3330.8,1.150242]
[1722265071130,3.00177,3331.4,3330.8,1.150242]
[1722265071341,1.03971745,3331.3,3330.8,1.150242]
[1722265071545,3.00148,3331.7,3330.9,0.7152542]
[1722265071746,1.03970895,3331.6,3331.0,0.55]
[1722265071945,1.03970895,3331.5,3331.1,0.06003052]
[1722265072263,1.03970895,3331.4,3331.0,0.55]
[1722265072469,1.03970895,3331.3,3331.0,0.73654962]